fUSD/lending_fUSD_20241116
["ID","MTS","AMOUNT","RATE_DAILY","PERIOD"]
[342355034,1731773436391,-6280.275,9.94e-05,2]
[342355035,1731773436400,-1090.0,9.94e-05,2]
[342355036,1731773436410,-3356.62885807,9.953e-05,2]
[342355037,1731773436423,-500.0,9.959e-05,2]
[342355038,1731773436433,-262.39298774,9.959e-05,2]
[342355039,1731773436445,-500.0,9.959e-05,2]
[342355040,1731773436455,-500.0,9.959e-05,2]
[342355041,1731773436466,-395.72411364,9.959e-05,2]
[342355042,1731773436477,-500.0,9.959e-05,2]
[342355043,1731773436492,-500.0,9.959e-05,2]
[342355044,1731773436505,-515.0,9.959e-05,2]
[342355045,1731773436517,-100230.95411763,9.96e-05,2]
[342355046,1731773436528,-953.57976291,9.96e-05,2]
[342355047,1731773436539,-25372.7941778,9.961e-05,2]
[342355053,1731773437552,-8827.6,9.961e-05,2]
[342355054,1731773437606,-66030.55993983,9.961e-05,2]
[342355055,1731773437618,-3356.62885807,9.961e-05,2]
[342355056,1731773437629,-17643.31524863,9.962e-05,2]
[342355057,1731773437641,-2007.54096087,9.962e-05,2]
[342355058,1731773437653,-953.57976291,9.962e-05,2]
[342355059,1731773437666,-2007.54096087,9.964e-05,2]
[342355060,1731773437677,-200.0,9.964e-05,2]
[342355061,1731773437688,-200.0,9.966e-05,2]
[342355062,1731773437699,-3356.62885807,9.97e-05,2]
[342355063,1731773437711,-2007.54096087,9.971e-05,2]
[342355064,1731773437723,-17643.31524863,9.971e-05,2]
[342355065,1731773437736,-953.57976291,9.972e-05,2]
[342355066,1731773437748,-953.57976291,9.972e-05,2]
[342355067,1731773437759,-500.0,9.973e-05,2]
[342355068,1731773437770,-500.0,9.973e-05,2]
[342355069,1731773437781,-500.0,9.973e-05,2]
[342355070,1731773437792,-200.0,9.973e-05,2]
[342355071,1731773437803,-200.0,9.974e-05,2]
[342355072,1731773437814,-2007.54096087,9.976e-05,2]
[342355073,1731773437826,-200.0,9.982e-05,2]
[342355074,1731773437836,-194.318123,9.984e-05,2]
[342355075,1731773437848,-500.0,9.984e-05,2]
[342355076,1731773437858,-500.0,9.984e-05,2]
[342355077,1731773437870,-500.0,9.984e-05,2]
[342355078,1731773437880,-500.0,9.984e-05,2]
[342355079,1731773437891,-500.0,9.984e-05,2]
[342355080,1731773437900,-500.0,9.984e-05,2]
[342355081,1731773437911,-500.0,9.984e-05,2]
[342355082,1731773437922,-2007.54096087,9.985e-05,2]
[342355083,1731773437933,-100230.95411763,9.985e-05,2]
[342355084,1731773437943,-3356.62885807,9.986e-05,2]
[342355085,1731773437955,-500.0,9.986e-05,2]
[342355086,1731773437965,-500.0,9.986e-05,2]
[342355087,1731773437977,-953.57976291,9.987e-05,2]
[342355088,1731773437991,-100230.95411763,9.987e-05,2]
[342355089,1731773438002,-1243.564,9.99e-05,2]
[342355090,1731773438013,-176.246,9.99e-05,2]
[342355091,1731773438024,-17643.31524863,9.991e-05,2]
[342355092,1731773438034,-17643.31524863,9.993e-05,2]
[342355093,1731773438044,-360.50717747,9.994e-05,2]
[342355094,1731773438055,-500.0,9.994e-05,2]
[342355095,1731773438065,-500.0,9.994e-05,2]
[342355096,1731773438075,-500.0,9.994e-05,2]
[342355097,1731773438085,-353.04579167,9.994e-05,2]
[342355098,1731773438096,-4754.26019224,9.995e-05,2]
[342355099,1731773438106,-132467.77466085,9.995e-05,2]
[342355100,1731773438126,-274.62501,9.995e-05,2]
[342355101,1731773438138,-23841.68704763,9.995e-05,2]
[342355102,1731773438151,-992.51923934,9.995e-05,2]
[342355103,1731773438166,-1261.2467511,9.995e-05,2]
[342355104,1731773438179,-5769.7561267,9.995e-05,2]
[342355105,1731773438194,-2026.47636121,9.995e-05,2]
[342355106,1731773438206,-532.48834741,9.995e-05,2]
[342355109,1731773438436,-59369.85153182,9.995e-05,2]
[342355110,1731773438446,-100230.95411763,9.995e-05,2]
[342355111,1731773438456,-17643.31524863,9.995e-05,2]
[342355112,1731773438470,-3356.62885807,9.997e-05,2]
[342355113,1731773438480,-500.0,9.998e-05,2]
[342355114,1731773438493,-571.11,9.998e-05,2]
[342355115,1731773438503,-500.0,9.998e-05,2]
[342355116,1731773438514,-500.0,9.998e-05,2]
[342355117,1731773438524,-500.0,9.998e-05,2]
[342355118,1731773438535,-8500.0,9.999e-05,2]
[342355119,1731773438545,-443.71229162,9.999e-05,2]
[342355120,1731773438555,-525.1378722,9.999e-05,2]
[342355121,1731773438565,-571.11,9.999e-05,2]
[342355122,1731773438576,-571.11,9.999e-05,2]
[342355123,1731773438586,-571.11,9.999e-05,2]
[342355124,1731773438596,-571.11,9.999e-05,2]
[342355125,1731773438606,-571.11,9.999e-05,2]
[342355126,1731773438616,-571.11,9.999e-05,2]
[342355127,1731773438626,-571.11,9.999e-05,2]
[342355128,1731773438636,-571.11,9.999e-05,2]
[342355129,1731773438646,-571.11,9.999e-05,2]
[342355130,1731773438656,-571.11,9.999e-05,2]
[342355131,1731773438666,-571.11,9.999e-05,2]
[342355132,1731773438676,-571.11,9.999e-05,2]
[342355133,1731773438687,-571.11,9.999e-05,2]
[342355134,1731773438697,-571.11,9.999e-05,2]
[342355135,1731773438709,-571.11,9.999e-05,2]
[342355136,1731773438719,-571.11,9.999e-05,2]
[342355137,1731773438731,-571.11,9.999e-05,2]
[342355138,1731773438745,-571.11,9.999e-05,2]
[342355139,1731773438756,-571.11,9.999e-05,2]
[342355140,1731773438767,-571.11,9.999e-05,2]
[342355141,1731773438777,-571.11,9.999e-05,2]
[342355142,1731773438787,-571.20405119,9.999e-05,2]
[342355143,1731773438797,-500.0,9.999e-05,2]
[342355144,1731773438808,-501.15893894,9.999e-05,2]
[342355145,1731773438819,-374.72466694,9.999e-05,2]
[342355146,1731773438830,-559.4300625,9.999e-05,2]
[342355147,1731773438841,-600.85812057,9.999e-05,2]
[342355148,1731773438851,-500.0,9.999e-05,2]
[342355149,1731773438860,-152.02983604,9.999e-05,2]
[342355150,1731773438870,-500.0,9.999e-05,2]
[342355151,1731773438880,-500.0,9.999e-05,2]
[342355152,1731773438890,-500.0,9.999e-05,2]
[342355153,1731773438901,-500.0,9.999e-05,2]
[342355154,1731773438911,-495.36,9.999e-05,2]
[342355155,1731773438920,-304.013,0.0001,2]
[342355156,1731773438930,-628.0,0.0001,2]
[342355157,1731773438941,-1312.901,0.0001,2]
[342355158,1731773438952,-814.0,0.0001,2]
[342355159,1731773438966,-1054.522,0.0001,2]
[342355160,1731773438977,-259809.44314206,0.0001,2]
[342355161,1731773438997,-4277.00989885,0.0001,2]
[342355162,1731773439016,-1062672.32115876,0.0001,2]
[342355165,1731773439570,-108274.30908408,0.0001,2]
[342355166,1731773439625,-546.02766795,0.0001,2]
[342355167,1731773439679,-281.3614,0.0001,2]
[342355168,1731773439759,-10.99869736,0.0001,2]
[342355173,1731773442529,-500.0,9.589e-05,2]
[342355174,1731773442539,-276.06146747,9.998e-05,2]
[342355175,1731773442584,-223.93853253,9.998e-05,2]
[342355176,1731773442594,-342.57562642,9.999e-05,2]
[342355177,1731773442604,-566.0,0.0001,2]
[342355178,1731773442614,-4465675.87284425,0.0001,2]
[342355179,1731773442626,-53808.62922,0.0001,2]
[342355180,1731773442639,-308372.156237,0.0001,2]
[342355181,1731773442654,-526.6052595,0.0001,2]
[342355183,1731773442666,-51221.91014524,0.0001,2]
[342355184,1731773442678,-23896.33111695,0.0001,2]
[342355185,1731773442690,-175914.35135257,0.0001,2]
[342355186,1731773442807,-1500.0,0.0001,2]
[342355187,1731773442820,-5017.54809755,0.0001,2]
[342355188,1731773442831,-6702.81487323,0.0001,2]
[342355189,1731773442843,-2122.55895174,0.0001,2]
[342355190,1731773442855,-1852.06394401,0.0001,2]
[342355191,1731773442866,-5986.89,0.0001,2]
[342355192,1731773442877,-5066.46840368,0.0001,2]
[342355193,1731773442889,-479.39020773,0.0001,2]
[342355194,1731773442909,-18915.5711092,0.0001,2]
[342355195,1731773442921,-16266.20483865,0.0001,2]
[342355198,1731773442932,-4383.04075523,0.0001,2]
[342355200,1731773442943,-3178.28766342,0.0001,2]
[342355201,1731773442954,-3707.95105696,0.0001,2]
[342355202,1731773442967,-2998.42803045,0.0001,2]
[342355210,1731773445616,-5469.24386174,0.0001,2]
[342355211,1731773445627,-5784.4,0.0001,2]
[342355212,1731773445638,-4798.08249989,0.0001,2]
[342355213,1731773445652,-277.15001,0.0001,2]
[342355214,1731773445680,-461100.00000104,0.0001,2]
[342355215,1731773445691,-52097.20743549,0.0001,2]
[342355216,1731773445719,-8916.4752451,0.0001,2]
[342355217,1731773445730,-1410.92290486,0.0001,2]
[342355218,1731773445882,-1536.70000001,0.0001,2]
[342355261,1731773602742,2000.0,0.00024999,120]
[342355270,1731773829342,10000.0,0.00025,60]
[342355271,1731773853540,891.27,8.219e-05,2]
[342355272,1731773861340,10000.0,0.00025,60]
[342355273,1731773884895,4872.3,0.00025,60]
[342355277,1731774199530,2000.0,0.0002495,120]
[342355278,1731774427133,-239.27,8.629e-05,3]
[342355279,1731774427155,-159.39,8.657e-05,2]
[342355280,1731774427177,-1000.0,8.657e-05,2]
[342355281,1731774427199,-1000.0,8.657e-05,2]
[342355282,1731774427220,-250.0,8.711e-05,2]
[342355283,1731774427241,-1507.20105186,8.712e-05,2]
[342355284,1731774427266,-386.34,8.799e-05,2]
[342355285,1731774427288,-250.0,8.871e-05,2]
[342355286,1731774427310,-20286.13,9.039e-05,2]
[342355287,1731774427332,-369.61,9.047e-05,2]
[342355288,1731774427354,-228.49,9.055e-05,2]
[342355289,1731774427378,-432.89,9.16e-05,2]
[342355290,1731774427399,-432.89,9.16e-05,2]
[342355291,1731774427420,-150.0,9.196e-05,2]
[342355292,1731774427443,-6488.1558,9.197e-05,2]
[342355293,1731774427466,-9365.90374227,9.197e-05,2]
[342355296,1731774439122,-471.24196288,9.197e-05,2]
[342355301,1731774552118,504.31,8.939e-05,2]
[342355302,1731774562397,193.17,8.631e-05,2]
[342355303,1731774568475,250.0,8.957e-05,2]
[342355324,1731774631810,-150.0,9.196e-05,2]
[342355325,1731774631821,-78977.39399485,9.197e-05,2]
[342355326,1731774631831,-1000.0,9.2e-05,2]
[342355327,1731774631841,-1000.0,9.2e-05,2]
[342355328,1731774631851,-1000.0,9.2e-05,2]
[342355329,1731774631860,-1000.0,9.2e-05,2]
[342355330,1731774631870,-1000.0,9.2e-05,2]
[342355331,1731774631880,-1002.0,9.2e-05,2]
[342355332,1731774631890,-1015.0,9.2e-05,2]
[342355333,1731774631900,-1000.0,9.2e-05,2]
[342355334,1731774631911,-1001.0,9.2e-05,2]
[342355335,1731774631925,-1000.0,9.2e-05,2]
[342355336,1731774631936,-1000.0,9.2e-05,2]
[342355337,1731774631946,-1000.0,9.2e-05,2]
[342355338,1731774631956,-432.89,9.25e-05,2]
[342355339,1731774631968,-9179.2508,9.297e-05,2]
[342355340,1731774631985,-5962.4259,9.297e-05,2]
[342355341,1731774631995,-100000.0,9.297e-05,2]
[342355342,1731774632005,-2864.0131,9.297e-05,2]
[342355343,1731774632015,-145769.3937,9.297e-05,2]
[342355344,1731774632025,-250.0,9.368e-05,2]
[342355345,1731774632035,-776.49,9.37e-05,2]
[342355346,1731774632045,-433.2,9.534e-05,2]
[342355347,1731774632055,-362.32,9.534e-05,2]
[342355348,1731774632065,-300.0,9.534e-05,2]
[342355349,1731774632075,-150.0,9.534e-05,2]
[342355350,1731774632084,-150.0,9.534e-05,2]
[342355351,1731774632093,-500.0,9.589e-05,2]
[342355352,1731774632103,-626.49,9.589e-05,2]
[342355353,1731774632112,-500.0,9.589e-05,2]
[342355354,1731774632122,-500.0,9.589e-05,2]
[342355355,1731774632132,-500.0,9.589e-05,2]
[342355356,1731774632142,-500.0,9.589e-05,2]
[342355357,1731774632151,-500.0,9.589e-05,2]
[342355358,1731774632161,-500.0,9.589e-05,2]
[342355359,1731774632177,-500.0,9.589e-05,2]
[342355360,1731774632187,-500.0,9.589e-05,2]
[342355361,1731774632197,-500.0,9.589e-05,2]
[342355362,1731774632206,-500.0,9.589e-05,2]
[342355363,1731774632216,-500.0,9.589e-05,2]
[342355364,1731774632225,-486.47529847,9.589e-05,2]
[342355365,1731774632235,-500.0,9.589e-05,2]
[342355366,1731774632244,-237.27,9.589e-05,2]
[342355367,1731774632253,-500.0,9.589e-05,2]
[342355368,1731774632263,-519.69,9.589e-05,2]
[342355369,1731774632273,-500.0,9.589e-05,2]
[342355370,1731774632283,-500.0,9.589e-05,2]
[342355371,1731774632292,-500.0,9.589e-05,2]
[342355372,1731774632302,-500.0,9.589e-05,2]
[342355373,1731774632311,-500.0,9.589e-05,2]
[342355374,1731774632321,-500.0,9.589e-05,2]
[342355375,1731774632330,-500.0,9.589e-05,2]
[342355376,1731774632339,-500.0,9.589e-05,2]
[342355377,1731774632348,-500.0,9.589e-05,2]
[342355378,1731774632358,-500.0,9.589e-05,2]
[342355379,1731774632367,-500.0,9.589e-05,2]
[342355380,1731774632376,-303.24,9.589e-05,2]
[342355381,1731774632386,-500.0,9.589e-05,2]
[342355382,1731774632395,-610.44705806,9.589e-05,2]
[342355383,1731774632404,-500.0,9.589e-05,2]
[342355384,1731774632413,-503.65295991,9.589e-05,2]
[342355385,1731774632426,-278.79,9.589e-05,2]
[342355386,1731774632435,-500.0,9.589e-05,2]
[342355387,1731774632444,-500.0,9.589e-05,2]
[342355388,1731774632454,-500.0,9.589e-05,2]
[342355389,1731774632464,-500.0,9.589e-05,2]
[342355390,1731774632473,-500.0,9.589e-05,2]
[342355391,1731774632482,-500.0,9.589e-05,2]
[342355392,1731774632492,-500.0,9.589e-05,2]
[342355393,1731774632501,-500.26820357,9.589e-05,2]
[342355394,1731774632511,-500.0,9.589e-05,2]
[342355395,1731774632521,-500.0,9.589e-05,2]
[342355396,1731774632529,-172.67,9.589e-05,2]
[342355397,1731774632538,-500.0,9.589e-05,2]
[342355398,1731774632548,-500.0,9.589e-05,2]
[342355399,1731774632557,-500.0,9.589e-05,2]
[342355400,1731774632566,-500.0,9.589e-05,2]
[342355401,1731774632575,-500.0,9.589e-05,2]
[342355402,1731774632583,-500.0,9.589e-05,2]
[342355403,1731774632592,-500.0,9.589e-05,2]
[342355404,1731774632601,-620.6,9.589e-05,2]
[342355405,1731774632611,-504.17598377,9.589e-05,2]
[342355406,1731774632621,-500.0,9.589e-05,2]
[342355407,1731774632634,-500.0,9.589e-05,2]
[342355408,1731774632643,-500.0,9.589e-05,2]
[342355409,1731774632652,-500.0,9.589e-05,2]
[342355410,1731774632662,-500.0,9.589e-05,2]
[342355411,1731774632672,-500.0,9.589e-05,2]
[342355412,1731774632681,-500.0,9.589e-05,2]
[342355413,1731774632690,-500.0,9.589e-05,2]
[342355414,1731774632701,-622.39,9.589e-05,2]
[342355415,1731774632710,-608.88,9.589e-05,2]
[342355416,1731774632719,-500.0,9.589e-05,2]
[342355417,1731774632728,-500.0,9.589e-05,2]
[342355418,1731774632738,-553.16,9.589e-05,2]
[342355419,1731774632747,-500.0,9.589e-05,2]
[342355420,1731774632756,-1484.2,9.589e-05,2]
[342355421,1731774632766,-606.417627,9.589e-05,2]
[342355422,1731774632775,-273.32439031,9.589e-05,2]
[342355423,1731774632785,-1491.2,9.589e-05,2]
[342355424,1731774632794,-500.0,9.589e-05,2]
[342355425,1731774632803,-500.0,9.589e-05,2]
[342355426,1731774632813,-527.06,9.589e-05,2]
[342355427,1731774632822,-500.0,9.589e-05,2]
[342355428,1731774632831,-500.0,9.589e-05,2]
[342355429,1731774632840,-615.64,9.589e-05,2]
[342355430,1731774632849,-378.07,9.589e-05,2]
[342355431,1731774632858,-500.0,9.589e-05,2]
[342355432,1731774632867,-621.02,9.589e-05,2]
[342355433,1731774632876,-500.0,9.589e-05,2]
[342355434,1731774632885,-500.0,9.589e-05,2]
[342355435,1731774632894,-1249.04,9.589e-05,2]
[342355436,1731774632904,-500.0,9.589e-05,2]
[342355437,1731774632913,-500.0,9.589e-05,2]
[342355438,1731774632926,-191.65,9.589e-05,2]
[342355439,1731774632935,-500.0,9.589e-05,2]
[342355440,1731774632945,-500.0,9.589e-05,2]
[342355441,1731774632954,-500.0,9.589e-05,2]
[342355442,1731774632963,-500.0,9.589e-05,2]
[342355443,1731774632973,-500.0,9.589e-05,2]
[342355444,1731774632983,-539.17,9.589e-05,2]
[342355445,1731774632993,-500.0,9.589e-05,2]
[342355446,1731774633003,-500.0,9.589e-05,2]
[342355447,1731774633013,-500.0,9.589e-05,2]
[342355448,1731774633024,-500.0,9.589e-05,2]
[342355449,1731774633034,-200.0,9.6e-05,2]
[342355450,1731774633043,-5710.91,9.67e-05,2]
[342355451,1731774633053,-9999.99,9.67e-05,2]
[342355452,1731774633062,-1103.69,9.67e-05,2]
[342355453,1731774633071,-150.99,9.67e-05,2]
[342355454,1731774633080,-270.23,9.67e-05,2]
[342355455,1731774633088,-1000.0,9.739e-05,2]
[342355456,1731774633098,-500.0,9.773e-05,2]
[342355457,1731774633106,-500.0,9.773e-05,2]
[342355458,1731774633115,-500.0,9.773e-05,2]
[342355459,1731774633124,-500.0,9.773e-05,2]
[342355460,1731774633133,-347.35582032,9.773e-05,2]
[342355461,1731774633142,-500.0,9.797e-05,2]
[342355462,1731774633151,-500.0,9.798e-05,2]
[342355463,1731774633160,-622.39,9.798e-05,2]
[342355464,1731774633173,-500.0,9.798e-05,2]
[342355465,1731774633183,-1484.2,9.798e-05,2]
[342355466,1731774633192,-1491.2,9.798e-05,2]
[342355467,1731774633202,-1249.04,9.798e-05,2]
[342355468,1731774633211,-177.12,9.798e-05,2]
[342355469,1731774633220,-500.0,9.798e-05,2]
[342355470,1731774633229,-360.57107877,9.799e-05,2]
[342355471,1731774633239,-500.0,9.799e-05,2]
[342355472,1731774633249,-448.98,9.799e-05,2]
[342355473,1731774633259,-500.0,9.799e-05,2]
[342355474,1731774633269,-500.0,9.799e-05,2]
[342355475,1731774633279,-500.0,9.799e-05,2]
[342355476,1731774633290,-500.0,9.799e-05,2]
[342355477,1731774633300,-500.0,9.799e-05,2]
[342355478,1731774633310,-500.0,9.799e-05,2]
[342355479,1731774633321,-500.0,9.799e-05,2]
[342355480,1731774633331,-339.65936592,9.799e-05,2]
[342355481,1731774633340,-500.0,9.799e-05,2]
[342355482,1731774633351,-289.34878895,9.799e-05,2]
[342355483,1731774633361,-500.0,9.799e-05,2]
[342355484,1731774633371,-189.28346878,9.799e-05,2]
[342355485,1731774633381,-500.0,9.799e-05,2]
[342355486,1731774633391,-500.0,9.799e-05,2]
[342355487,1731774633402,-500.0,9.799e-05,2]
[342355488,1731774633411,-500.0,9.799e-05,2]
[342355489,1731774633423,-500.0,9.799e-05,2]
[342355490,1731774633434,-500.0,9.799e-05,2]
[342355491,1731774633444,-500.0,9.799e-05,2]
[342355492,1731774633454,-500.0,9.799e-05,2]
[342355493,1731774633464,-500.0,9.799e-05,2]
[342355494,1731774633474,-500.0,9.799e-05,2]
[342355495,1731774633484,-500.0,9.799e-05,2]
[342355496,1731774633494,-500.0,9.799e-05,2]
[342355497,1731774633504,-500.0,9.799e-05,2]
[342355498,1731774633514,-500.0,9.799e-05,2]
[342355499,1731774633523,-453.54,9.799e-05,2]
[342355500,1731774633533,-500.0,9.799e-05,2]
[342355501,1731774633543,-500.0,9.799e-05,2]
[342355502,1731774633553,-500.0,9.799e-05,2]
[342355503,1731774633562,-500.0,9.799e-05,2]
[342355504,1731774633571,-622.39,9.799e-05,2]
[342355505,1731774633581,-622.39,9.799e-05,2]
[342355506,1731774633590,-500.0,9.799e-05,2]
[342355507,1731774633600,-500.0,9.799e-05,2]
[342355508,1731774633609,-553.16,9.799e-05,2]
[342355509,1731774633619,-553.16,9.799e-05,2]
[342355510,1731774633630,-553.16,9.799e-05,2]
[342355511,1731774633640,-1484.2,9.799e-05,2]
[342355512,1731774633650,-1484.2,9.799e-05,2]
[342355513,1731774633659,-1491.2,9.799e-05,2]
[342355514,1731774633672,-1491.2,9.799e-05,2]
[342355515,1731774633682,-500.0,9.799e-05,2]
[342355516,1731774633692,-500.0,9.799e-05,2]
[342355517,1731774633702,-180.49,9.799e-05,2]
[342355518,1731774633713,-570.6,9.799e-05,2]
[342355519,1731774633723,-500.0,9.799e-05,2]
[342355520,1731774633733,-500.0,9.799e-05,2]
[342355521,1731774633743,-500.0,9.799e-05,2]
[342355522,1731774633753,-615.64,9.799e-05,2]
[342355523,1731774633763,-615.64,9.799e-05,2]
[342355524,1731774633774,-615.64,9.799e-05,2]
[342355525,1731774633784,-500.0,9.799e-05,2]
[342355526,1731774633795,-500.0,9.799e-05,2]
[342355527,1731774633806,-500.0,9.799e-05,2]
[342355528,1731774633817,-224.19,9.799e-05,2]
[342355529,1731774633826,-500.0,9.799e-05,2]
[342355530,1731774633836,-558.22083012,9.799e-05,2]
[342355531,1731774633846,-1249.04,9.799e-05,2]
[342355532,1731774633856,-1249.04,9.799e-05,2]
[342355533,1731774633865,-500.0,9.799e-05,2]
[342355534,1731774633875,-500.0,9.799e-05,2]
[342355535,1731774633886,-500.0,9.799e-05,2]
[342355536,1731774633896,-500.0,9.799e-05,2]
[342355537,1731774633906,-500.0,9.799e-05,2]
[342355538,1731774633916,-500.0,9.799e-05,2]
[342355539,1731774633931,-500.0,9.799e-05,2]
[342355540,1731774633941,-500.0,9.799e-05,2]
[342355541,1731774633952,-500.0,9.799e-05,2]
[342355542,1731774633963,-500.0,9.799e-05,2]
[342355543,1731774633974,-500.0,9.799e-05,2]
[342355544,1731774633984,-500.0,9.799e-05,2]
[342355545,1731774633994,-286.81,9.799e-05,2]
[342355546,1731774634005,-500.0,9.799e-05,2]
[342355547,1731774634015,-500.0,9.799e-05,2]
[342355548,1731774634026,-443.07803166,9.799e-05,2]
[342355549,1731774634036,-500.0,9.799e-05,2]
[342355550,1731774634045,-500.0,9.799e-05,2]
[342355551,1731774634055,-500.0,9.799e-05,2]
[342355552,1731774634063,-500.0,9.799e-05,2]
[342355553,1731774634072,-500.0,9.799e-05,2]
[342355554,1731774634082,-462.36293338,9.799e-05,2]
[342355555,1731774634092,-533430.62881758,9.8e-05,2]
[342355556,1731774634101,-500.0,9.9e-05,2]
[342355557,1731774634111,-1000.0,9.9e-05,2]
[342355558,1731774634120,-5380.85928,9.9e-05,2]
[342355559,1731774634129,-278.42,9.959e-05,2]
[342355560,1731774634139,-500.0,9.959e-05,2]
[342355561,1731774634149,-500.0,9.959e-05,2]
[342355562,1731774634159,-500.0,9.959e-05,2]
[342355563,1731774634170,-200.0,9.968e-05,2]
[342355564,1731774634181,-500.0,9.984e-05,2]
[342355565,1731774634192,-512.70437807,9.984e-05,2]
[342355566,1731774634203,-175.877,9.987e-05,2]
[342355567,1731774634213,-1451.001,9.987e-05,2]
[342355568,1731774634224,-1276.6375263,9.987e-05,2]
[342355569,1731774634234,-200.0,9.992e-05,2]
[342355570,1731774634244,-1147.5239163,9.993e-05,2]
[342355571,1731774634254,-1018.4103064,9.993e-05,2]
[342355572,1731774634264,-889.2966964,9.993e-05,2]
[342355573,1731774634274,-500.0,9.998e-05,2]
[342355574,1731774634284,-500.0,9.998e-05,2]
[342355575,1731774634293,-500.0,9.998e-05,2]
[342355576,1731774634304,-153.36,9.998e-05,2]
[342355577,1731774634313,-500.0,9.998e-05,2]
[342355578,1731774634323,-404.1398557,9.998e-05,2]
[342355579,1731774634333,-500.0,9.998e-05,2]
[342355580,1731774634343,-500.0,9.998e-05,2]
[342355581,1731774634354,-500.0,9.998e-05,2]
[342355582,1731774634364,-500.0,9.998e-05,2]
[342355583,1731774634374,-500.0,9.998e-05,2]
[342355584,1731774634384,-500.0,9.998e-05,2]
[342355585,1731774634394,-500.0,9.998e-05,2]
[342355586,1731774634404,-622.39,9.998e-05,2]
[342355587,1731774634415,-622.39,9.998e-05,2]
[342355588,1731774634428,-1484.2,9.998e-05,2]
[342355589,1731774634437,-1484.2,9.998e-05,2]
[342355590,1731774634447,-1491.2,9.998e-05,2]
[342355591,1731774634457,-1491.2,9.998e-05,2]
[342355592,1731774634467,-500.0,9.998e-05,2]
[342355593,1731774634477,-500.0,9.998e-05,2]
[342355594,1731774634486,-238.26805987,9.998e-05,2]
[342355595,1731774634496,-615.64,9.998e-05,2]
[342355596,1731774634506,-615.64,9.998e-05,2]
[342355597,1731774634516,-500.0,9.998e-05,2]
[342355598,1731774634526,-500.0,9.998e-05,2]
[342355599,1731774634535,-1249.04,9.998e-05,2]
[342355600,1731774634545,-1249.04,9.998e-05,2]
[342355601,1731774634554,-500.0,9.998e-05,2]
[342355602,1731774634564,-500.0,9.998e-05,2]
[342355603,1731774634574,-500.0,9.998e-05,2]
[342355604,1731774634585,-500.0,9.998e-05,2]
[342355605,1731774634594,-308.53380491,9.999e-05,2]
[342355606,1731774634604,-1409.64967674,9.999e-05,2]
[342355607,1731774634616,-8500.0,9.999e-05,2]
[342355608,1731774634626,-492.43,9.999e-05,2]
[342355609,1731774634637,-500.0,9.999e-05,2]
[342355610,1731774634646,-500.0,9.999e-05,2]
[342355611,1731774634656,-500.0,9.999e-05,2]
[342355612,1731774634665,-500.0,9.999e-05,2]
[342355613,1731774634679,-500.0,9.999e-05,2]
[342355614,1731774634689,-500.0,9.999e-05,2]
[342355615,1731774634698,-500.0,9.999e-05,2]
[342355616,1731774634710,-500.0,9.999e-05,2]
[342355617,1731774634721,-500.0,9.999e-05,2]
[342355618,1731774634731,-500.0,9.999e-05,2]
[342355619,1731774634740,-500.0,9.999e-05,2]
[342355620,1731774634751,-500.0,9.999e-05,2]
[342355621,1731774634761,-622.55202761,9.999e-05,2]
[342355622,1731774634771,-500.0,9.999e-05,2]
[342355623,1731774634781,-500.0,9.999e-05,2]
[342355624,1731774634791,-500.0,9.999e-05,2]
[342355625,1731774634801,-500.0,9.999e-05,2]
[342355626,1731774634811,-500.0,9.999e-05,2]
[342355627,1731774634821,-500.0,9.999e-05,2]
[342355628,1731774634831,-500.0,9.999e-05,2]
[342355629,1731774634841,-500.0,9.999e-05,2]
[342355630,1731774634851,-364.54402168,9.999e-05,2]
[342355631,1731774634862,-500.0,9.999e-05,2]
[342355632,1731774634871,-500.0,9.999e-05,2]
[342355633,1731774634881,-359.67,9.999e-05,2]
[342355634,1731774634891,-1864.47679007,9.999e-05,2]
[342355635,1731774634901,-500.0,9.999e-05,2]
[342355636,1731774634911,-500.0,9.999e-05,2]